Cogmind - Beta 16 @@@ ROGUE MODE // 2025.12.31 @ 11:45:43 Player: wobb Result: Destroyed by G-47 Trooper with Particle Gun Performance ------------- Evolutions (0) 0 Regions Visited (2) 400 Robots Destroyed (10) 50 Value Destroyed (121) 121 Prototype IDs (0) 0 Alien Tech Used (0) 0 Bonus (0) 0 TOTAL SCORE: 571 Bonus ------- None Cogmind --------- Core Integrity 0/250 Matter 293/300 Energy 100/100 System Corruption 0% Temperature Cool (15) Movement Core (150) Ox2 Location -10/Mines Parts ------- > --- POWER (1) -------- (None) > --- PROPULSION (2) --- (None) > --- UTILITY (2) ------ Small Storage Unit Seismic Detector > --- WEAPON (2) ------- Light Assault Rifle > --- INVENTORY (8) ---- Visual Processing Unit Improved Terrain Scanner Mining Laser Peak State ------------ > --- POWER ------------ Ion Engine > --- PROPULSION ------- Light Treads Light Treads > --- UTILITY ---------- Small Storage Unit Seismic Detector > --- WEAPON ----------- Light Assault Rifle Light Assault Rifle > --- INVENTORY -------- Improved Terrain Scanner Mining Laser [Rating: 7] Favorites ----------- Power Ion Engine Engine Ion Engine Propulsion Light Treads Treads Light Treads Hover Unit Hover Unit Utility Small Storage Unit Device Seismic Detector Storage Small Storage Unit Weapon Light Assault Rifle Ballistic Gun Light Assault Rifle Build | -11 -10 -10 ------- Run | Yrd Mat Min Slots Evolved . | . . . Power . | . . . Propulsion . | . . . Utility . | . . . Weapon . | . . . Parts Attached 8 | 7 . 1 Power 1 | 1 . . Engine 1 | 1 . . Core . | . . . Reactor . | . . . Propulsion 3 | 2 . 1 Treads 2 | 2 . . Leg . | . . . Wheel . | . . . Hover 1 | . . 1 Flight . | . . . Utility 2 | 2 . . Device 1 | 1 . . Storage 1 | 1 . . Processor . | . . . Hackware . | . . . Protection . | . . . Artifact . | . . . Weapon 2 | 2 . . Energy Gun . | . . . Energy Cannon . | . . . Ballistic Gun 2 | 2 . . Ballistic Cannon . | . . . Launcher . | . . . Special Weapon . | . . . Impact Weapon . | . . . Slashing Weapon . | . . . Piercing Weapon . | . . . Special Melee Weapon . | . . . Unidentified Prototypes . | . . . Parts Lost 5 | . . 5 Power 1 | . . 1 Propulsion 3 | . . 3 Utility . | . . . Weapon 1 | . . 1 Highest Loss Streak 5 | . . 5 To Critical Strikes . | . . . Average Backups 1 | 1 2 3 Power . | . . . Propulsion . | . . . Utility . | . 1 2 Weapon . | . 1 1 Tool/Special . | . . . Unused Backups 3 | . . 3 Power . | . . . Propulsion . | . . . Utility 2 | . . 2 Weapon 1 | . . 1 Tool/Special . | . . . Average Slot Usage (%) 95 | . 100 82 Engine 12 | . 14 7 Treads 24 | . 28 14 Device 14 | . 14 14 Storage 14 | . 14 14 Ballistic Gun 28 | . 28 28 Peak Build Rating 7 | 7 7 7 Average Rating 5 | 5 7 5 On Entrance 4 | . 7 7 Avg Prop Armor Cover (%) . | . . . Naked Turns . | . . . Heaviest Build 13 | 13 13 13 Greatest Support 40 | 40 40 40 Greatest Overweight (x) 3 | 3 . 2 Average Overweight (x) . | . . . Largest Inventory Capacity 8 | 8 8 8 Average Capacity 7 | 7 8 8 Most Carried 4 | 3 4 4 Average Carried 1 | 1 2 3 Final Capacity 8 | 8 8 8 Final Carried 4 | 2 4 3 Class Distribution -------------------- 100% | Mutant Dominant Class ---------------- Mutant | -10/Materials Mutant | -10/Mines Resources | -11 -10 -10 ----------- Run | Yrd Mat Min Matter Collected 322 | 300 22 . Remotely . | . . . Salvage Created 249 | 203 26 20 Parts 22 | 17 2 3 Haulers Intercepted . | . . . Recyclers Shooed . | . . . Parts Field Recycled . | . . . Retrieved Matter . | . . . Parts Self-Destructed . | . . . Prevented . | . . . Parts Restored . | . . . Kills | -11 -10 -10 ------- Run | Yrd Mat Min Combat Hostiles Destroyed 2 | . . 2 Guns 2 | . . 2 Classes Destroyed 6 | 3 1 2 Worker 1 | 1 . . Tunneler 5 | 5 . . Recycler 1 | 1 . . Watcher 1 | . 1 . Swarmer 1 | . . 1 Demolisher 1 | . . 1 Best Kill Streak 4 | 4 1 2 Combat Bots Only 2 | . . 2 Max Kills in Single Turn 1 | 1 1 1 Gunslinging . | . . . Exploded . | . . . Melee . | . . . Uniques/NPCs Destroyed . | . . . Combat | -11 -10 -10 -------- Run | Yrd Mat Min Hostile Shots Fired 55 | . . 55 Missed 10 | . . 10 Hits 45 | . . 45 Projectile 45 | . . 45 AOE 10 | . . 10 Critical Strikes 1 | . . 1 Damage Taken 937 | . . 937 Core 252 | . . 252 Absorbed by Shields . | . . . Core Remaining (%) 100 | 100 . . Volleys Fired 32 | 23 3 6 Largest 2 | 2 2 2 Hottest 40 | 40 40 40 Shots Fired 63 | 46 6 11 Gun 63 | 46 6 11 Cannon . | . . . Launcher . | . . . Special . | . . . Kinetic 63 | 46 6 11 Thermal . | . . . Explosive . | . . . Electromagnetic . | . . . Robot Hit Streak 9 | 9 5 8 Robot Miss Streak 3 | 3 1 1 Penetration Max . | . . . Secondary Targets . | . . . Shots Hit Robots 48 | 33 5 10 Core Hits 23 | 14 3 6 Critical Kills . | . . . Critical Parts Destroyed . | . . . Critical Strikes . | . . . Melee Attacks . | . . . Impact . | . . . Slashing . | . . . Piercing . | . . . Sneak Attacks . | . . . Combat Hostiles . | . . . Follow-up Attacks . | . . . Damage Inflicted 383 | 266 41 76 Guns 383 | 266 41 76 Cannons . | . . . Explosions . | . . . Melee . | . . . Ramming . | . . . Kinetic 383 | 266 41 76 Thermal . | . . . Explosive . | . . . Electromagnetic . | . . . Impact . | . . . Slashing . | . . . Piercing . | . . . Highest Corruption . | . . . Average Corruption . | . . . Corruption Purged . | . . . Corruption Blocked . | . . . Overload Shots . | . . . Overflow Damage . | . . . Projectiles . | . . . Explosions . | . . . Melee . | . . . Knockbacks . | . . . Impact . | . . . Kinetic . | . . . Secondary . | . . . Self-Inflicted Damage . | . . . Shots . | . . . Rammed . | . . . Targets Rammed . | . . . Kicked . | . . . Crushed . | . . . Highest Temperature 27 | . . 27 Average Temperature 10 | . . 10 Received Heat Transfer 183 | . . 183 Siege Activations . | . . . Martial Activations . | . . . Shielding Activations . | . . . Robots Disrupted . | . . . Combat Hostiles . | . . . Robots Corrupted . | . . . Combat Hostiles . | . . . Parts Fried . | . . . Impact Corruptions . | . . . Robots Melted . | . . . Combat Hostiles . | . . . Parts Melted . | . . . Heat Transferred . | . . . Parts Sabotaged . | . . . Parts Stolen . | . . . Parts Stripped . | . . . Power Chain Reactions . | . . . Alert | -11 -10 -10 ------- Run | Yrd Mat Min Maximum Alert Level . | . . . Low Security (%) 100 | 100 100 100 Level 1 . | . . . Level 2 . | . . . Level 3 . | . . . Level 4 . | . . . Level 5 . | . . . High Security . | . . . Max Security . | . . . Peak Influence 30 | 5 7 30 Initial . | . . . Average 1 | 1 . 10 Influence Increases 92 | 35 7 50 Destroy 0b10 Robot/C 40 | . . 40 Destroy 0b10 Robot/NC 40 | 35 5 . Destroy Leader 12 | . 2 10 Influence Decreases 82 | 35 7 40 Time Decay 52 | 35 7 10 Lost Part 30 | . . 30 Squads Dispatched . | . . . Investigation . | . . . Extermination . | . . . Reinforcement . | . . . Assault . | . . . Garrison . | . . . Intercept . | . . . Searches Triggered . | . . . Construction Impeded . | . . . Haulers Reinforced . | . . . Active Scanning Responses . | . . . Cargo Convoy Interrupts . | . . . Stealth | -11 -10 -10 --------- Run | Yrd Mat Min Distress Signals . | . . . Communications Jammed . | . . . Distress Signals . | . . . Times Spotted 10 | . 2 8 Peak Tracking Total 5 | . 2 5 Tactical Retreats . | . . . Traps | -11 -10 -10 ------- Run | Yrd Mat Min Traps Triggered . | . . . Indirectly . | . . . Trap Hack Attempts . | . . . Triggered . | . . . Disarmed . | . . . Reprogrammed . | . . . Reused . | . . . Traps Extracted . | . . . Installed . | . . . Triggered . | . . . Machines | -11 -10 -10 ---------- Run | Yrd Mat Min Machines Disabled . | . . . Max in Single Turn . | . . . Machines Repaired . | . . . Machines Dismantled . | . . . Machines Sabotaged . | . . . Overloaded Fab Kills . | . . . Hacking | -11 -10 -10 --------- Run | Yrd Mat Min Machines Accessed 1 | . 1 . Terminals 1 | . 1 . Fabricators . | . . . Repair Stations . | . . . Recycling Units . | . . . Scanalyzers . | . . . Garrison Access . | . . . Total Hacks 3 | . 3 . Successful . | . . . Failed 3 | . 3 . Catastrophic 1 | . 1 . Database Lockouts . | . . . Manual 3 | . 3 . Terminals 3 | . 3 . Fabricators . | . . . Repair Stations . | . . . Recycling Units . | . . . Scanalyzers . | . . . Garrison Access . | . . . Terminal Hacks . | . . . Fabricator Hacks . | . . . Repair Station Hacks . | . . . Recycling Unit Hacks . | . . . Scanalyzer . | . . . Garrison Access Hacks . | . . . Unauthorized Hacks . | . . . Terminals . | . . . Fabricators . | . . . Repair Stations . | . . . Recycling Units . | . . . Scanalyzers . | . . . Garrison Access . | . . . Data Cores Recovered . | . . . Used . | . . . Hacking Detections 1 | . 1 . Full Trace Events . | . . . Feedback Events . | . . . Feedback Blocked . | . . . Robot Schematics Acquired . | . . . Robots Built . | . . . Authchips . | . . . Time . | . . . Total Robot Build Rating . | . . . Part Schematics Acquired . | . . . Parts Built . | . . . Authchips . | . . . Time . | . . . Total Part Build Rating . | . . . Part Studies Acquired . | . . . Parts Repaired . | . . . Time . | . . . Parts Recycled . | . . . Recycled Matter . | . . . Retrieved Matter . | . . . Retrieved Components . | . . . Parts Scanalyzed . | . . . Part Schematics Acquired . | . . . Parts Damaged . | . . . Bothacking | -11 -10 -10 ------------ Run | Yrd Mat Min Used RIF Installer . | . . . Robots Hacked . | . . . Non-combat . | . . . Combat . | . . . Robot Hacks Applied . | . . . Relay Couplers Released . | . . . Fabnet Peak Effective % . | . . . Robots Rewired . | . . . Allies Hacked . | . . . Hacks Repelled . | . . . Allies | -11 -10 -10 -------- Run | Yrd Mat Min Total Allies . | . . . Largest Group . | . . . Highest-Rated Group . | . . . Highest-Rated Ally . | . . . Total Orders . | . . . Ally Attacks . | . . . Total Damage . | . . . Kills . | . . . Allies Corrupted . | . . . Allies Melted . | . . . Intel | -11 -10 -10 ------- Run | Yrd Mat Min Active Infowar (turns) 178 | 27 115 36 Seismic 178 | 27 115 36 Robot Analysis Total . | . . . Derelict Logs Recovered . | . . . Drone Launches . | . . . Drone Recoveries . | . . . Exploration | -11 -10 -10 ------------- Run | Yrd Mat Min Turns Passed 468 | 317 115 36 Spaces Moved 233 | 153 66 14 Core 15 | 14 . 1 Treads 213 | 139 66 8 Legs . | . . . Wheels . | . . . Hover 5 | . . 5 Flight . | . . . Fastest Speed 50 | 50 160 120 Average Speed 157 | 158 160 145 Slowest Speed 200 | 200 160 160 Overloaded Moves . | . . . Propulsion Burnouts . | . . . Robots Hopped . | . . . Potential Cave-ins . | . . . Cave-ins Triggered 1 | . . 1 Exploration Rate (%) 12 | 11 17 10 Regions Visited 2 Branch Regions 1 Pre-discovered Areas . | . . . Known Exits Taken . | . . . Unknown Exits Taken 2 | 1 1 . Scrap Searched . | . . . Spaces Dug . | . . . Terrain Destroyed . | . . . Melee . | . . . Projectile . | . . . AOE . | . . . Terrain Rammed . | . . . Walls Destroyed . | . . . Machines Disabled . | . . . Actions | -11 -10 -10 --------- Run | Yrd Mat Min Total 283 | 191 71 21 Wait 1 | . 1 . Move 231 | 152 65 14 Hop . | . . . Pick Up 11 | 9 2 . Fast Attach . | . . . Attach 8 | 7 . 1 Detach . | . . . Swap . | . . . Drop . | . . . Fire 32 | 23 3 6 Melee . | . . . Ram . | . . . Kick . | . . . Crush . | . . . Escape Stasis . | . . . Rewire . | . . . Trap . | . . . Miscellaneous . | . . . Route ------- -11/Scrapyard -10/Materials -10/Mines (discovered 1 exit: [*Mat]) History --------- Turn | Location | Event 18 | -11/Scrapyard | Discovered new exit (range 16) 318 | -11/Scrapyard | Entered Materials 319 | -10/Materials | Build established: Mutant 319 | -10/Materials | Met a group of wandering Federalists 416 | -10/Materials | Discovered new exit (range 12) 433 | -10/Materials | Entered Mines 434 | -10/Mines | Assembled infested the area 453 | -10/Mines | Discovered new exit (range 9) 456 | -10/Mines | Core integrity fell below 50% 464 | -10/Mines | Crushed by falling debris 464 | -10/Mines | Core integrity fell below 20% 469 | -10/Mines | Destroyed by G-47 Trooper with Particle Gun Last Messages --------------- 00449_ D-53 Grenadier destroyed. 00449_ Lgt. Treads destroyed. 00450_ The unstable cave ceiling collapses. 00451_ Critical hit (Burn: +37). 00452_ The unstable cave ceiling collapses. 00453_ D-53 Grenadier destroyed. 00453_ EXIT=FOUND 00456_ The unstable cave ceiling collapses. 00456_ U-05 Engineer builds a Wall. 00457_ The unstable cave ceiling collapses. 00459_ S-10 Pest destroyed. 00462_ The unstable cave ceiling collapses. 00463_ K-01 Serf collects debris. 00464_ The unstable cave ceiling collapses. 00464_ Crushed by falling debris. 00464_ Lgt. Ion Engine crushed. 00464_ U-05 Engineer builds a Wall. 00465_ Lgt. Assault Rifle destroyed. 00466_ Hover Unit destroyed. 00469_ The unstable cave ceiling collapses. Map ----- +----------------------------------------------------+ | | | | | | | | | | | | | | | | | ?????????????????????????????????????????????????? | | ?????????????????????????????????????????????????? | | ?????????????????????????????????????????????????? | | ?????????????????????????????????????????????????? | | ?????????????????????????????????????????????????? | | ?????????????????????????????????????????????????? | | ?????????????????????????????????????????????????? | | ?????????????????????????????????????????????????? | | ?????????????????????????????????????????????????? | | ?????????????????????????????????????????????????? | | ?????????????????????????????????????????????????? | | ?????????????????????????????????????????????????? | | ???????????????????????????????####??????????????? | | ?????????????????????????????? ####???????????? | | ????????????????????????????? ????????????? | | ???????????????????????????? #??????????????? | | ????????????????????######## #??????????????? | | ???????????????????## @[u= < #??????????????? | | ??????????????????## # s## T#?????????????? | | ??????????????????# # # k ##???####?????????????? | | ???????????######### s #????????????????????? | | ???????? #????????????????????? | | ????????????####### #????????????????????? | | ??????????????????# #????????????????????? | | ??????????????????### # #????????????????????? | | ???????????????????# #gg# ##????????????????????? | | ??????????????????## ##?????????????????????? | | ??????????????????# ##??????????????????????? | | ??????????????????# #??????????????????????? | | ??????????????????# #??????????????????????? | | ??????????????????## #?????????????????????? | | ???????????????????### #?????????????????????? | | ?????????????????????## #????????????????????? | | ?????????????????????? ???????????????????? | | ?????????????????????? ??????????????????? | | ?????????????????????? ?????????????????? | | ??????????????????????# ## #????????????????? | | ??????????????????????? ##?###????????????????? | | ???????????????????????# ##?????????????????????? | | ????????????????????????# #??????????????????????? | | ????????????????????????? #??????????????????????? | | ????????????????????????? #??????????????????????? | +----------------------------------------------------+ Best States ------------- Heat Dissipation 25 Energy Generation 10 Energy Capacity 250 Matter Stores 300 Matter Capacity 300 Sight Range 16 Terrain Scan Density 10 Evasion (%) 40 Recoil Reduction 2 Item Schematics ----------------- None Robot Schematics ------------------ None Fabricated ------------ Nothing Repaired ---------- Nothing Studied --------- None Alien Tech Used ----------------- None Achievements -------------- None Challenges ------------ None Game ------ Seed LobotomyGrenadeTurbovents Manual? 0 Play Time 00:11:17 Cumulative 37.7 hours Start 2025.12.31 @ 11:26:34 End 2025.12.31 @ 11:45:43 Sessions 1 Manual Loads 0 Difficulty Rogue Special Mode None Game No. 23 Rogue 6 Adventurer 10 Explorer 7 Win Type - Total 1 Types 1/0/0/0/0/0/0/0/0/0 Lore% 14 Gallery% 27 Achievement% 18 Wizard Run 0 Options --------- Layout 1 ASCII 0 Keyboard 0 Movement Mouse Keybinds 0 Fullscreen 1 Font 24/Smallcaps Map View 50x40 Zoom Use 0% Tactical HUD 1 Map Filters NONE Filters NONE Steam 1 RUN: 4d54db95-045b-4727-a04f-cd361212597b